bitfinex/quotes_BTCUSD_20240727
["timestamp","ask_amount","ask_price","bid_price","bid_amount"]
[1722064694153,2.83231503,68256.0,68255.0,0.009064]
[1722064696139,2.83231503,68256.0,68251.0,0.002]
[1722064696140,0.31335922,68252.0,68251.0,1e-08]
[1722064696356,1.09945422,68249.0,68248.0,0.009064]
[1722064696548,1.28261922,68243.0,68242.0,0.04900902]
[1722064696744,2.46884583,68243.0,68242.0,0.15186249]
[1722064696953,2.49184583,68243.0,68242.0,0.15186249]
[1722064697156,2.65065391,68243.0,68242.0,0.15186249]
[1722064699397,2.65219615,68243.0,68242.0,0.15186249]
[1722064699610,2.67632251,68243.0,68242.0,0.15186249]
[1722064699818,2.69932178,68243.0,68242.0,0.15186249]
[1722064700046,2.86358135,68243.0,68242.0,0.15186249]
[1722064700236,2.84058208,68243.0,68242.0,0.15186249]
[1722064701822,2.84058208,68243.0,68242.0,0.12255549]
[1722064702498,2.69032251,68243.0,68242.0,0.12255549]
[1722064702666,2.01415251,68243.0,68242.0,0.12255549]
[1722064702871,2.08958884,68243.0,68242.0,0.18575549]
[1722064703506,2.03688723,68243.0,68242.0,0.18575549]
[1722064703702,2.11258723,68243.0,68242.0,0.18575549]
[1722064703902,2.08958884,68243.0,68242.0,0.18575549]
[1722064704107,2.23761318,68243.0,68242.0,0.18575549]
[1722064704307,2.08958884,68243.0,68242.0,0.18575549]
[1722064704572,2.23984841,68243.0,68242.0,0.18575549]
[1722064705267,1.94450575,68243.0,68242.0,0.18575549]
[1722064705480,1.79651884,68243.0,68242.0,0.18575549]
[1722064705654,1.68203462,68243.0,68242.0,0.18575549]
[1722064706023,1.70310846,68243.0,68242.0,0.26795549]
[1722064706160,1.70277177,68243.0,68242.0,0.26795549]
[1722064706566,1.26172599,68243.0,68242.0,0.26795549]
[1722064706774,1.24593913,68243.0,68242.0,0.31788748]
[1722064707174,1.33253493,68243.0,68242.0,0.31788748]
[1722064707393,1.30840857,68243.0,68242.0,0.31788748]
[1722064707824,1.30840857,68243.0,68242.0,0.26795549]
[1722064707825,1.33319279,68243.0,68242.0,0.26795549]
[1722064708024,1.29440857,68243.0,68242.0,0.26795549]
[1722064708196,1.40710857,68243.0,68242.0,0.26795549]
[1722064709266,1.29751541,68243.0,68242.0,0.26795549]
[1722064709423,1.292445,68243.0,68242.0,0.26795549]
[1722064709639,1.29672095,68243.0,68242.0,0.26795549]
[1722064709843,1.29572095,68243.0,68242.0,0.26795549]
[1722064710298,1.30972095,68243.0,68242.0,0.26795549]
[1722064710491,1.3327167,68243.0,68242.0,0.26795549]
[1722064711009,1.30972095,68243.0,68242.0,0.26795549]
[1722064712529,1.36846495,68243.0,68242.0,0.26795549]
[1722064713055,1.36835405,68243.0,68242.0,0.26795549]
[1722064714010,1.39135018,68243.0,68242.0,0.26795549]
[1722064714417,1.36835405,68243.0,68242.0,0.26795549]
[1722064716349,1.350189,68243.0,68242.0,0.26795549]
[1722064716498,1.36857049,68243.0,68242.0,0.26795549]
[1722064717492,1.70042471,68243.0,68242.0,0.12255549]
[1722064717909,1.77700804,68243.0,68242.0,0.12255549]
[1722064718086,1.77732097,68243.0,68242.0,0.12255549]
[1722064718279,1.90235679,68243.0,68242.0,0.12255549]
[1722064719553,1.68204322,68243.0,68242.0,0.12255549]
[1722064719752,1.90265496,68243.0,68242.0,0.12255549]
[1722064720188,1.75456008,68243.0,68242.0,0.12255549]
[1722064720875,1.90266771,68243.0,68242.0,0.20335549]
[1722064721078,2.14098728,68243.0,68242.0,0.20335549]
[1722064721284,2.01587681,68243.0,68242.0,0.12347949]
[1722064721964,1.86561724,68243.0,68242.0,0.12347949]
[1722064722370,1.84262008,68243.0,68242.0,0.12347949]
[1722064723029,1.84298063,68243.0,68242.0,0.12347949]
[1722064723187,1.84296568,68243.0,68242.0,0.12347949]
[1722064724438,2.13603568,68243.0,68242.0,0.12347949]
[1722064724581,1.99322525,68243.0,68242.0,0.12347949]
[1722064725673,2.30929288,68243.0,68242.0,0.12347949]
[1722064725992,1.99322525,68243.0,68242.0,0.12347949]
[1722064726524,1.92036279,68243.0,68242.0,0.12347949]
[1722064726654,1.84251408,68243.0,68242.0,0.12347949]
[1722064729957,1.84279837,68243.0,68242.0,0.12347949]
[1722064730496,2.13586837,68243.0,68242.0,0.12347949]
[1722064731430,1.84279837,68243.0,68242.0,0.12347949]
[1722064732029,2.13586837,68243.0,68242.0,0.12347949]
[1722064732375,1.99305794,68243.0,68242.0,0.12347949]
[1722064732815,2.28612794,68243.0,68242.0,0.12347949]
[1722064733017,2.30912574,68243.0,68242.0,0.12347949]
[1722064733503,2.30916729,68243.0,68242.0,0.12347949]
[1722064734452,2.28616949,68243.0,68242.0,0.12347949]
[1722064736346,2.13590992,68243.0,68242.0,0.12347949]
[1722064736692,2.06317322,68243.0,68242.0,0.12347949]
[1722064736914,2.13590945,68243.0,68242.0,0.12347949]
[1722064737851,2.15890762,68243.0,68242.0,0.12347949]
[1722064739423,2.13590945,68243.0,68242.0,0.12347949]
[1722064739626,2.28616902,68243.0,68242.0,0.12347949]
[1722064740064,2.57923902,68243.0,68242.0,0.12347949]
[1722064740230,2.28616902,68243.0,68242.0,0.12347949]
[1722064740792,2.57923902,68243.0,68242.0,0.12347949]
[1722064742770,2.57798708,68243.0,68242.0,0.12347949]
[1722064743081,2.87798708,68243.0,68242.0,0.12347949]
[1722064743678,2.87798708,68243.0,68228.0,0.063717]
[1722064743679,0.45994822,68235.0,68228.0,0.063717]
[1722064743815,1.16978851,68235.0,68228.0,0.063717]
[1722064744018,1.75599651,68235.0,68228.0,0.063717]
[1722064744764,2.34220451,68235.0,68228.0,0.063717]
[1722064744960,2.35220451,68235.0,68228.0,0.063717]
[1722064745305,2.38074693,68235.0,68228.0,0.063717]
[1722064745836,2.35220451,68235.0,68232.0,0.0779]
[1722064746037,2.28072022,68235.0,68232.0,0.0779]
[1722064746233,2.35348189,68235.0,68232.0,0.0779]
[1722064746496,2.36448189,68235.0,68232.0,0.0779]
[1722064746671,2.39792822,68235.0,68232.0,0.0779]
[1722064746883,2.44868102,68235.0,68232.0,0.0779]
[1722064747280,2.44867759,68235.0,68232.0,0.0779]
[1722064747532,2.39792479,68235.0,68232.0,0.0779]
[1722064750169,2.42092499,68235.0,68234.0,0.0628636]
[1722064751310,2.42092499,68235.0,68234.0,0.0001636]
[1722064753137,2.42088133,68235.0,68234.0,0.0001636]
[1722064753450,2.5711409,68235.0,68234.0,0.0001636]
[1722064753626,2.5711409,68235.0,68234.0,0.0010876]
[1722064754758,2.39788113,68235.0,68234.0,0.0010876]
[1722064755377,2.40658113,68235.0,68234.0,0.0010876]
[1722064756395,2.38780698,68235.0,68234.0,0.0010876]
[1722064756603,2.40649642,68235.0,68234.0,0.0010876]
[1722064757686,1.68591122,68230.0,68229.0,0.063624]
[1722064757859,1.96594452,68230.0,68229.0,0.13875379]
[1722064758057,1.7547003,68230.0,68229.0,0.21665379]
[1722064758277,1.86210132,68230.0,68229.0,0.21665379]
[1722064758429,1.86210132,68230.0,68229.0,0.141524]
[1722064759252,2.15522732,68230.0,68229.0,0.141524]
[1722064759458,1.86210132,68230.0,68229.0,0.141524]
[1722064759658,1.8451003,68230.0,68229.0,0.141524]
[1722064759856,1.8449636,68230.0,68229.0,0.141524]
[1722064760487,1.8452257,68230.0,68229.0,0.141524]
[1722064760747,2.18113592,68230.0,68229.0,0.141524]
[1722064760946,1.88800992,68230.0,68229.0,0.141524]
[1722064761584,2.18101004,68230.0,68229.0,0.141524]
[1722064761836,1.88788404,68230.0,68229.0,0.141524]
[1722064762125,1.91088499,68230.0,68229.0,0.141524]
[1722064763391,1.88786385,68230.0,68229.0,0.141524]
[1722064764341,2.33124942,68230.0,68229.0,0.000924]
[1722064764607,2.33124942,68230.0,68228.0,0.001017]
[1722064764608,1.10473922,68229.0,68228.0,0.001017]
[1722064764736,1.30035185,68229.0,68228.0,0.001017]
[1722064764936,1.88661185,68229.0,68228.0,0.001017]
[1722064765345,1.97545575,68229.0,68228.0,0.001017]
[1722064765547,1.97467185,68229.0,68228.0,0.001017]
[1722064766366,1.99767437,68229.0,68228.0,0.001017]
[1722064766573,2.00874833,68229.0,68228.0,0.001017]
[1722064767614,1.99574581,68229.0,68228.0,0.001017]
[1722064768613,2.14600538,68229.0,68228.0,0.001017]
[1722064769991,2.07331879,68229.0,68228.0,0.001017]
[1722064770198,2.14597008,68229.0,68228.0,0.001017]
[1722064770722,1.89186911,68229.0,68228.0,0.147317]
[1722064770990,1.72192333,68229.0,68228.0,0.147317]
[1722064771332,1.99205051,68229.0,68228.0,0.147317]
[1722064771460,1.95326629,68229.0,68228.0,0.147317]
[1722064771655,1.99205051,68229.0,68228.0,0.147317]
[1722064773115,2.01873362,68229.0,68228.0,0.147317]
[1722064773464,1.99175252,68229.0,68228.0,0.147317]
[1722064774280,2.01475389,68229.0,68228.0,0.147317]
[1722064775570,1.99175252,68229.0,68228.0,0.147317]
[1722064777049,1.99194632,68229.0,68228.0,0.147317]
[1722064777250,1.90754632,68229.0,68228.0,0.147317]
[1722064777379,1.99194632,68229.0,68228.0,0.147317]
[1722064777968,2.12238005,68229.0,68228.0,0.147317]
[1722064778367,1.39794522,68225.0,68224.0,0.009075]
[1722064778628,1.67789232,68225.0,68224.0,0.009075]
[1722064778829,1.9940416,68225.0,68224.0,0.073975]
[1722064778984,2.0031166,68225.0,68224.0,0.073975]
[1722064779712,2.0101166,68225.0,68224.0,0.073975]
[1722064779889,2.3101166,68225.0,68224.0,0.073975]
[1722064780234,2.41249423,68225.0,68224.0,0.073975]
[1722064780479,2.38949195,68225.0,68224.0,0.073975]
[1722064780650,2.29315485,68225.0,68224.0,0.009075]
[1722064781202,2.29315485,68225.0,68224.0,0.090575]
[1722064781203,1.95437063,68225.0,68224.0,0.090575]
[1722064781430,1.95437063,68225.0,68224.0,0.154975]
[1722064781876,1.99315485,68225.0,68224.0,0.009075]
[1722064782077,2.14341442,68225.0,68224.0,0.009075]
[1722064783620,2.09383026,68225.0,68224.0,0.009075]
[1722064783822,2.16705116,68225.0,68224.0,0.009075]
[1722064783938,2.14404769,68225.0,68224.0,0.009075]
[1722064785216,1.99378812,68225.0,68224.0,0.009075]
[1722064786913,2.00372321,68225.0,68224.0,0.009075]
[1722064787345,2.02672672,68225.0,68224.0,0.009075]
[1722064790566,2.02690755,68225.0,68224.0,0.009075]
[1722064791507,2.02943643,68225.0,68224.0,0.009075]
[1722064791646,2.179696,68225.0,68224.0,0.009075]
[1722064793096,2.15669249,68225.0,68224.0,0.009075]
[1722064793908,2.15666994,68225.0,68224.0,0.009075]
[1722064795089,2.44981694,68225.0,68224.0,0.009075]
[1722064795296,1.59800422,68222.0,68221.0,0.0664]
[1722064795539,1.8787834,68222.0,68221.0,0.0664]
[1722064795759,2.1719434,68222.0,68221.0,0.0664]
[1722064796350,2.19494753,68222.0,68221.0,0.0664]
[1722064797370,2.20834537,68222.0,68221.0,0.0664]
[1722064798254,2.35860494,68222.0,68221.0,0.0664]
[1722064798452,2.37260494,68222.0,68221.0,0.0664]
[1722064799054,2.37260494,68222.0,68221.0,0.002]
[1722064799867,2.22234537,68222.0,68221.0,0.002]
[1722064800272,2.58956537,68222.0,68221.0,0.002]
[1722064800482,2.58956537,68222.0,68220.0,0.009075]
[1722064800483,1.69118622,68221.0,68220.0,0.009075]
[1722064800822,1.8872693,68221.0,68220.0,0.009075]
[1722064801375,1.8888235,68221.0,68220.0,0.009075]
[1722064801620,2.14114307,68221.0,68220.0,0.009075]
[1722064801987,2.15514307,68221.0,68220.0,0.009075]
[1722064802190,2.15358887,68221.0,68220.0,0.009075]
[1722064802616,2.0048835,68221.0,68220.0,0.009075]
[1722064802907,1.58332108,68221.0,68220.0,0.151475]
[1722064803108,1.66772108,68221.0,68220.0,0.151475]
[1722064803307,1.61370612,68221.0,68220.0,0.151475]
[1722064803572,1.66801196,68221.0,68220.0,0.151475]
[1722064803755,1.66801259,68221.0,68220.0,0.151475]
[1722064803962,1.52930599,68221.0,68220.0,0.151475]
[1722064804177,1.65249021,68221.0,68220.0,0.151475]
[1722064804383,1.61370599,68221.0,68220.0,0.151475]
[1722064804536,1.55230911,68221.0,68220.0,0.151475]
[1722064804733,1.65249021,68221.0,68220.0,0.151475]
[1722064804940,1.61370599,68221.0,68220.0,0.151475]
[1722064805346,1.65249021,68221.0,68220.0,0.151475]
[1722064806274,1.65249021,68221.0,68220.0,0.16921623]
[1722064806442,1.301474,68221.0,68220.0,0.16921623]
[1722064806647,1.32128063,68221.0,68220.0,0.16921623]
[1722064808105,1.34428375,68221.0,68220.0,0.16921623]
[1722064809313,0.67355575,68221.0,68220.0,0.21914822]
[1722064809540,0.65055263,68221.0,68220.0,0.21914822]
[1722064809669,1.06690085,68221.0,68220.0,0.21914822]
[1722064809872,1.0668794,68221.0,68220.0,0.21914822]
[1722064810074,0.98809518,68221.0,68220.0,0.21914822]
[1722064810274,0.59653118,68221.0,68220.0,0.21914822]
[1722064810697,0.67393118,68221.0,68220.0,0.21914822]
[1722064811063,0.67693118,68221.0,68220.0,0.21914822]
[1722064811258,0.68393118,68221.0,68220.0,0.21914822]
[1722064811458,0.29636718,68221.0,68220.0,0.21914822]
[1722064811684,0.15069067,68221.0,68220.0,0.21914822]
[1722064811894,0.30436718,68221.0,68220.0,0.21914822]
[1722064812497,0.59753118,68221.0,68220.0,0.21914822]
[1722064813248,0.59166713,68221.0,68220.0,0.21914822]
[1722064813599,0.67606713,68221.0,68220.0,0.21914822]
[1722064814155,0.662146,68221.0,68220.0,0.21914822]
[1722064814339,0.60074836,68221.0,68220.0,0.21914822]
[1722064814551,0.60074836,68221.0,68220.0,0.16921623]
[1722064814552,0.97831236,68221.0,68220.0,0.16921623]
[1722064814887,0.95531,68221.0,68220.0,0.16921623]
[1722064817494,1.248474,68221.0,68220.0,0.16921623]
[1722064817689,0.95531,68221.0,68220.0,0.16921623]
[1722064817945,0.9783142,68221.0,68220.0,0.16921623]
[1722064818105,0.9783142,68221.0,68220.0,0.21914822]
[1722064818310,0.9791542,68221.0,68220.0,0.21914822]
[1722064818863,0.9791542,68221.0,68220.0,0.16921623]
[1722064819201,0.95615,68221.0,68220.0,0.21914822]
[1722064819402,0.95615,68221.0,68220.0,0.16921623]
[1722064821520,1.249314,68221.0,68220.0,0.16921623]
[1722064821700,1.26281844,68221.0,68220.0,0.16921623]
[1722064822447,1.25481844,68221.0,68220.0,0.16921623]
[1722064822851,1.26181844,68221.0,68220.0,0.16921623]
[1722064823291,1.19141844,68221.0,68220.0,0.16921623]
[1722064823495,1.27616926,68221.0,68220.0,0.16921623]
[1722064823910,1.31228284,68221.0,68220.0,0.16921623]
[1722064824116,1.28927826,68221.0,68220.0,0.16921623]
[1722064826796,1.275423,68221.0,68220.0,0.16921623]
[1722064826988,1.28916693,68221.0,68220.0,0.16921623]
[1722064827613,1.31217151,68221.0,68220.0,0.16921623]
[1722064830321,1.31243766,68221.0,68220.0,0.16921623]
[1722064830723,1.28943308,68221.0,68220.0,0.16921623]
[1722064831339,1.28943308,68221.0,68220.0,0.21914822]
[1722064831549,1.20503308,68221.0,68220.0,0.21914822]
[1722064831755,1.28943308,68221.0,68220.0,0.21914822]
[1722064832411,1.27543308,68221.0,68220.0,0.21914822]
[1722064832583,1.26143308,68221.0,68220.0,0.21914822]
[1722064832735,1.27543308,68221.0,68220.0,0.21914822]
[1722064833848,1.27554,68221.0,68220.0,0.21914822]
[1722064834057,1.31254458,68221.0,68220.0,0.21914822]
[1722064834264,1.31254458,68221.0,68220.0,0.16921623]
[1722064834375,1.29854458,68221.0,68220.0,0.16921623]
[1722064834787,1.30854458,68221.0,68220.0,0.16921623]
[1722064835402,1.28554,68221.0,68220.0,0.16921623]
[1722064835599,1.257423,68221.0,68220.0,0.16921623]
[1722064835828,1.27138005,68221.0,68220.0,0.16921623]
[1722064836388,1.28038005,68221.0,68220.0,0.16921623]
[1722064837243,1.28037286,68221.0,68220.0,0.16921623]
[1722064838745,1.30337744,68221.0,68220.0,0.02681623]
[1722064840635,1.30315415,68221.0,68220.0,0.02681623]
[1722064841959,1.63631815,68221.0,68220.0,0.02681623]
[1722064842483,1.61331357,68221.0,68220.0,0.02681623]
[1722064843305,1.65209779,68221.0,68220.0,0.02681623]
[1722064843922,1.65162893,68221.0,68220.0,0.02681623]
[1722064845247,1.61284471,68221.0,68220.0,0.02681623]
[1722064845897,1.67463338,68221.0,68220.0,0.02681623]
[1722064846077,1.63584916,68221.0,68220.0,0.02681623]
[1722064846400,1.61284471,68221.0,68220.0,0.02681623]
[1722064847315,1.599587,68221.0,68220.0,0.02681623]
[1722064847454,1.61286565,68221.0,68220.0,0.02681623]
[1722064847899,1.76312522,68221.0,68220.0,0.02681623]
[1722064848102,1.78612967,68221.0,68220.0,0.02681623]
[1722064848250,1.93461795,68221.0,68220.0,0.02681623]
[1722064850900,1.93466356,68221.0,68220.0,0.02681623]
[1722064851294,1.70000399,68221.0,68220.0,0.02681623]
[1722064851493,1.78440399,68221.0,68220.0,0.02681623]
[1722064852308,2.40951621,68221.0,68220.0,0.02681623]
[1722064852545,1.30499422,68212.0,68211.0,0.002]
[1722064852750,1.96743197,68212.0,68211.0,0.002]
[1722064852952,1.81887587,68212.0,68211.0,0.002]
[1722064853952,1.82187587,68212.0,68211.0,0.002]
[1722064854174,1.82196498,68212.0,68211.0,0.002]
[1722064854363,1.97222455,68212.0,68211.0,0.002]
[1722064854885,1.82696498,68212.0,68211.0,0.002]
[1722064855249,1.97543017,68212.0,68211.0,0.002]
[1722064855766,1.99843769,68212.0,68211.0,0.002]
[1722064855989,1.97543017,68212.0,68211.0,0.002]
[1722064857014,1.97506814,68212.0,68211.0,0.002]
[1722064857340,1.97686252,68212.0,68211.0,0.002]
[1722064857453,1.97687837,68212.0,68211.0,0.002]
[1722064857662,2.0254362,68212.0,68211.0,0.002]
[1722064858129,2.0174362,68212.0,68211.0,0.002]
[1722064858472,2.0324362,68212.0,68211.0,0.002]
[1722064859099,2.3256392,68212.0,68211.0,0.002]
[1722064859300,2.30009021,68212.0,68211.0,0.002]
[1722064859499,2.00688721,68212.0,68211.0,0.002]
[1722064859917,2.31016556,68212.0,68211.0,0.002]
[1722064860296,2.01696256,68212.0,68211.0,0.002]
[1722064860690,2.01729335,68212.0,68211.0,0.002]
[1722064862476,2.31049635,68212.0,68211.0,0.002]
[1722064863346,2.31069214,68212.0,68211.0,0.002]
[1722064863757,2.2876833,68212.0,68211.0,0.002]
[1722064865593,2.2877233,68212.0,68211.0,0.002]
[1722064866383,2.33670395,68212.0,68211.0,0.002]
[1722064866692,2.27417514,68212.0,68211.0,0.002]
[1722064866896,2.33692732,68212.0,68211.0,0.002]
[1722064867097,2.18666775,68212.0,68211.0,0.002]
[1722064867337,1.80555117,68212.0,68211.0,0.002]
[1722064867540,1.84433539,68212.0,68211.0,0.002]
[1722064867955,1.80555117,68212.0,68211.0,0.0841]
[1722064868157,1.84433539,68212.0,68211.0,0.0841]
[1722064869465,2.13753839,68212.0,68211.0,0.002]
[1722064869670,1.99459496,68212.0,68211.0,0.002]
[1722064870086,1.98097214,68212.0,68211.0,0.002]
[1722064870285,1.84425787,68212.0,68211.0,0.002]
[1722064870584,1.80547365,68212.0,68211.0,0.002]
[1722064871270,1.97671132,68212.0,68211.0,0.002]
[1722064871728,1.95370262,68212.0,68211.0,0.002]
[1722064872325,1.99248684,68212.0,68211.0,0.002]
[1722064873681,1.99231876,68212.0,68211.0,0.002]
[1722064874015,2.14257833,68212.0,68211.0,0.002]
[1722064875023,2.16812777,68212.0,68211.0,0.002]
[1722064875203,2.0178682,68212.0,68211.0,0.002]
[1722064876240,2.06677758,68212.0,68211.0,0.002]
[1722064876960,1.85626201,68212.0,68211.0,0.002]
[1722064877159,2.06678345,68212.0,68211.0,0.002]
[1722064877571,2.02799923,68212.0,68211.0,0.002]
[1722064878464,2.06678345,68212.0,68211.0,0.002]
[1722064878976,2.21704302,68212.0,68211.0,0.002]
[1722064880459,2.00652158,68212.0,68211.0,0.002]
[1722064880712,2.21728333,68212.0,68211.0,0.002]
[1722064880909,2.06702376,68212.0,68211.0,0.002]
[1722064882660,2.06702376,68212.0,68211.0,0.002924]
[1722064883285,1.91880628,68212.0,68211.0,0.002924]
[1722064884129,2.21214549,68212.0,68211.0,0.002924]
[1722064884338,2.27671657,68212.0,68211.0,0.002924]
[1722064884542,1.89593448,68212.0,68211.0,0.002924]
[1722064885444,1.833254,68212.0,68211.0,0.002924]
[1722064885649,1.89593903,68212.0,68211.0,0.002924]
[1722064886004,2.18914203,68212.0,68211.0,0.002924]
[1722064887385,2.18919679,68212.0,68211.0,0.002924]
[1722064887631,2.36246589,68212.0,68211.0,0.002924]
[1722064889665,1.91900332,68212.0,68211.0,0.002924]
[1722064890263,2.21220632,68212.0,68211.0,0.002924]
[1722064890461,1.91900332,68212.0,68211.0,0.002924]
[1722064890866,1.85626353,68212.0,68211.0,0.002924]
[1722064891070,2.21230436,68212.0,68211.0,0.002924]
[1722064891601,1.91910136,68212.0,68211.0,0.065724]
[1722064891767,1.88031714,68212.0,68211.0,0.065724]
[1722064892192,1.79591714,68212.0,68211.0,0.145024]
[1722064892369,1.88031714,68212.0,68211.0,0.145024]
[1722064893156,1.89609183,68212.0,68211.0,0.002924]
[1722064893409,2.0463514,68212.0,68211.0,0.002924]
[1722064893819,2.3395544,68212.0,68211.0,0.002924]
[1722064894157,2.27671657,68212.0,68211.0,0.002924]
[1722064894364,2.34228104,68212.0,68211.0,0.002924]
[1722064894799,2.43047104,68212.0,68211.0,0.002924]
[1722064896450,2.45348055,68212.0,68211.0,0.002924]
[1722064896802,2.43047104,68212.0,68211.0,0.002924]
[1722064897650,2.27969027,68212.0,68211.0,0.002924]
[1722064898240,2.27969027,68212.0,68211.0,0.145024]
[1722064898843,2.27969027,68212.0,68211.0,0.002924]
[1722064899085,2.34159027,68212.0,68211.0,0.002924]
[1722064899223,2.33349027,68212.0,68211.0,0.002924]
[1722064899451,2.56814984,68212.0,68211.0,0.002924]
[1722064900147,2.59115962,68212.0,68211.0,0.002924]
[1722064900350,2.88436262,68212.0,68211.0,0.002924]
[1722064900726,2.59115962,68212.0,68211.0,0.002924]
[1722064901178,2.59286527,68212.0,68211.0,0.002924]
[1722064901380,2.50795549,68212.0,68211.0,0.002924]
[1722064904430,2.19716586,68212.0,68211.0,0.002924]
[1722064904634,2.01137278,68212.0,68211.0,0.149424]
[1722064904896,1.98836286,68212.0,68211.0,0.149424]
[1722064905081,1.94957864,68212.0,68211.0,0.149424]
[1722064905282,1.98836286,68212.0,68211.0,0.149424]
[1722064906047,2.28156586,68212.0,68211.0,0.149424]
[1722064906253,1.94957864,68212.0,68211.0,0.149424]
[1722064906453,2.16638414,68212.0,68211.0,0.149424]
[1722064907100,1.94957864,68212.0,68211.0,0.149424]
[1722064907307,1.98836286,68212.0,68211.0,0.149424]
[1722064907731,2.01329854,68212.0,68211.0,0.149424]
[1722064908065,1.81770854,68212.0,68211.0,0.149424]
[1722064908296,1.81770854,68212.0,68211.0,0.19935599]
[1722064908297,0.2114704,68212.0,68211.0,0.19935599]
[1722064908465,0.03178471,68212.0,68211.0,0.19935599]
[1722064908688,0.17838571,68212.0,68211.0,0.19935599]
[1722064908864,0.31049011,68212.0,68211.0,0.19935599]
[1722064909065,0.60369311,68212.0,68211.0,0.19935599]
[1722064909266,0.01678471,68212.0,68211.0,0.19935599]
[1722064909473,0.16338571,68212.0,68211.0,0.19935599]
[1722064909629,0.16938571,68212.0,68211.0,0.19935599]
[1722064909836,0.146641,68212.0,68211.0,0.19935599]
[1722064910040,0.25665609,68212.0,68211.0,0.19935599]
[1722064910244,0.447844,68212.0,68211.0,0.19935599]
[1722064910684,0.462844,68212.0,68211.0,0.19935599]
[1722064911089,0.463844,68212.0,68211.0,0.19935599]
[1722064911290,0.563844,68212.0,68211.0,0.19935599]
[1722064911493,0.58685013,68212.0,68211.0,0.19935599]
[1722064911694,0.67477479,68212.0,68211.0,0.19935599]
[1722064911869,0.29364713,68212.0,68211.0,0.19935599]
[1722064912441,0.88005313,68212.0,68211.0,0.19935599]
[1722064912846,0.96706209,68212.0,68211.0,0.19935599]
[1722064914307,0.857047,68212.0,68211.0,0.19935599]
[1722064916100,0.88005269,68212.0,68211.0,0.19935599]
[1722064916336,0.94489731,68212.0,68211.0,0.19935599]
[1722064918270,0.857047,68212.0,68211.0,0.19935599]
[1722064919602,0.88005269,68212.0,68211.0,0.19935599]
[1722064920842,0.857047,68212.0,68211.0,0.19935599]
[1722064922502,0.92289884,68212.0,68211.0,0.19935599]
[1722064923289,0.33649284,68212.0,68211.0,0.19935599]
[1722064923609,0.62969584,68212.0,68211.0,0.19935599]
[1722064923797,0.62969125,68212.0,68211.0,0.19935599]
[1722064924166,0.6526969,68212.0,68211.0,0.19935599]
[1722064925607,0.6526969,68212.0,68211.0,0.37057177]
[1722064925608,0.1898929,68212.0,68211.0,0.37057177]
[1722064925807,0.12404565,68212.0,68211.0,0.51717477]
[1722064926419,0.12404565,68212.0,68211.0,0.37057177]
[1722064926771,0.12304565,68212.0,68211.0,0.51717477]
[1722064926921,0.02404565,68212.0,68211.0,0.51717477]
[1722064927301,0.02304565,68212.0,68211.0,0.51717477]
[1722064927905,0.02304565,68212.0,68211.0,0.37057177]
[1722064928303,4e-05,68212.0,68211.0,0.37057177]
[1722064928948,4e-05,68212.0,68211.0,0.51717477]
[1722064929580,0.00104,68212.0,68211.0,0.37057177]
[1722064929781,4e-05,68212.0,68211.0,0.37057177]
[1722064930259,0.00104,68212.0,68211.0,0.37057177]
[1722064930562,0.00104,68212.0,68211.0,0.51717477]
[1722064930718,0.00104,68212.0,68211.0,0.37057177]
[1722064930915,0.00104,68212.0,68211.0,0.51717477]
[1722064931140,0.00104,68212.0,68211.0,0.37057177]
[1722064931834,0.02404477,68212.0,68211.0,0.51717477]
[1722064932043,0.02404477,68212.0,68211.0,0.37057177]
[1722064932588,0.00104,68212.0,68211.0,0.51717477]
[1722064932802,0.00104,68212.0,68211.0,0.37057177]
[1722064935753,0.02404477,68212.0,68211.0,0.37057177]
[1722064937147,0.00104,68212.0,68211.0,0.51717477]
[1722064937316,0.00104,68212.0,68211.0,0.37057177]
[1722064940415,0.02404485,68212.0,68211.0,0.37057177]
[1722064944180,0.00104,68212.0,68211.0,0.37057177]
[1722064947562,0.02404497,68212.0,68211.0,0.37057177]
[1722064949238,0.08990863,68212.0,68211.0,0.37057177]
[1722064949438,0.02404497,68212.0,68211.0,0.37057177]
[1722064950204,0.02404497,68212.0,68211.0,0.51717477]
[1722064950404,0.02404497,68212.0,68211.0,0.81038177]
[1722064951057,0.02404497,68212.0,68211.0,1.48119577]
[1722064951464,0.02404497,68212.0,68211.0,1.60301108]
[1722064952329,0.02404497,68212.0,68211.0,1.30980408]
[1722064952330,0.00104,68212.0,68211.0,1.30980408]
[1722064952739,0.00104,68212.0,68211.0,1.22540408]
[1722064953368,0.00104,68212.0,68211.0,1.10358877]
[1722064955135,0.00104,68212.0,68211.0,1.48119577]
[1722064955480,0.0240448,68212.0,68211.0,1.18798877]
[1722064956699,0.00104,68212.0,68211.0,1.18798877]
[1722064959765,0.02404411,68212.0,68211.0,1.18798877]
[1722064959942,0.00104,68212.0,68211.0,1.18798877]
[1722064961050,0.00104,68212.0,68211.0,2.18798877]
[1722064963417,0.02404411,68212.0,68211.0,2.18798877]
[1722064963733,0.02404411,68212.0,68211.0,2.48119577]
[1722064963936,0.02404411,68212.0,68211.0,2.18798877]
[1722064966894,0.02404411,68212.0,68211.0,2.17487977]
[1722064968327,0.00104,68212.0,68211.0,2.17487977]
[1722064971505,0.02404422,68212.0,68211.0,2.17487977]
[1722064972044,0.00104,68212.0,68211.0,2.17487977]
[1722064976564,0.02404337,68212.0,68211.0,2.17487977]
[1722064976769,0.00104,68212.0,68211.0,2.17487977]
[1722064978932,0.02404344,68212.0,68211.0,2.17487977]
[1722064979460,0.00104,68212.0,68211.0,2.29669716]
[1722064981704,0.00104,68212.0,68211.0,2.58990416]
[1722064981911,0.00104,68212.0,68211.0,2.29669716]
[1722064982117,0.00104,68212.0,68211.0,2.17487977]
[1722064982268,0.00104,68212.0,68211.0,2.44695673]
[1722064982505,0.02404327,68212.0,68211.0,2.44695673]
[1722064982716,0.02404327,68212.0,68211.0,2.74016373]
[1722064983318,0.00104,68212.0,68211.0,2.74016373]
[1722064984769,0.00104,68212.0,68211.0,2.74016132]
[1722064986900,0.02404284,68212.0,68211.0,2.74016132]
[1722064987409,0.02404284,68212.0,68211.0,2.79016074]
[1722064988175,0.02404284,68212.0,68211.0,2.66834634]
[1722064988347,0.02404284,68212.0,68211.0,2.79016074]
[1722064988574,0.02404284,68212.0,68211.0,2.79015744]
[1722064988868,0.02404284,68212.0,68211.0,3.33536444]
[1722064988869,0.00104,68212.0,68211.0,3.33536444]
[1722064989251,0.00104,68212.0,68211.0,3.56924601]
[1722064989451,0.00104,68212.0,68211.0,3.51805291]
[1722064989659,1e-08,68212.0,68211.0,3.61805291]
[1722064990064,1e-08,68212.0,68211.0,3.64745291]